[Event "Lliga Catalana Relegation 2024"]
[Site "Catalonia"]
[Date "2024.04.13"]
[Round "4.1"]
[White "Mateu Guiu, Esteve"]
[Black "Molina Carretero, Daniel"]
[Result "1/2-1/2"]
[ECO "E05"]
[WhiteElo "2068"]
[BlackElo "2174"]
[Annotator "RC"]
[PlyCount "48"]
[EventDate "2024.01.18"]
[EventType "team-tourn"]
[EventCountry "ESP"]
[SourceTitle "playchess.com"]
[Source "ChessBase"]
[SourceQuality "1"]
[TimeControl "5400+30"]

1. d4 {[%emt 0:00:16]} Nf6 {[%emt 0:00:16]} 2. c4 {[%emt 0:00:16]} e6 {[%emt 0:00:15]} 3. g3 {[%emt 0:00:35]} d5 {[%emt 0:00:22]} 4. Nf3 {[%emt 0:00:42]} Be7 {[%emt 0:00:08]} 5. Bg2 {[%emt 0:00:22]} O-O {[%emt 0:00:09]} 6. O-O {[%emt 0:00:29]} dxc4 {[%emt 0:00:20]} 7. Na3 {[%emt 0:01:26]} Bxa3 {[%emt 0:02:18]} 8. bxa3 {[%emt 1:30:24]} b5 {[%emt 0:01:20]} 9. a4 {[%emt 0:00:00]} a6 {[%emt 0:00:54]} 10. Ba3 {[%emt 0:00:00]} Re8 {[%emt 0:01:07]} 11. Ne5 {[%emt 0:00:00]} Nd5 {[%emt 0:00:46]} 12. e4 {[%emt 0:00:00]} Nf6 {[%emt 1:28:35]} 13. Nxf7 {[%emt 0:00:00]} Kxf7 {[%emt 0:00:00]} 14. e5 {[%emt 0:00:00]} Nd5 {[%emt 0:00:00]} 15. Qh5+ {[%emt 0:00:00]} Kg8 {[%emt 0:00:00]} 16. Be4 {[%emt 0:00:00]} g6 {[%emt 0:00:00]} 17. Bxg6 {[%emt 0:00:00]} Re7 {[%emt 0:00:00]} 18. Bxe7 {[%emt 0:00:00]} Qxe7 {[%emt 0:00:00]} 19. Bxh7+ {[%emt 0:00:00]} Qxh7 {[%emt 0:03:30]} 20. Qe8+ Kg7 21. Qxc8 Qg8 {[%emt 0:01:00]} 22. Qb7 {[%emt 0:07:00]} Nd7 {[%emt 0:00:30]} 23. axb5 {[%emt 0:00:30]} axb5 {[%emt 0:00:30]} 24. Qxc7 {[%emt 0:00:30]} Rb8 {[%emt 0:00:30]} 1/2-1/2

[Event "Lliga Catalana Relegation 2024"]
[Site "Catalonia"]
[Date "2024.04.13"]
[Round "4.1"]
[White "Ribera Baztan, Jose"]
[Black "Terry Cuellar, Luis Antonio"]
[Result "1/2-1/2"]
[ECO "B00"]
[WhiteElo "2066"]
[BlackElo "2079"]
[Annotator "RC"]
[PlyCount "25"]
[EventDate "2024.01.18"]
[EventType "team-tourn"]
[EventCountry "ESP"]
[SourceTitle "playchess.com"]
[Source "ChessBase"]
[SourceQuality "1"]
[TimeControl "5400+30"]

1. f4 {[%emt 1:31:00]} b6 {[%emt 0:11:15]} 2. e4 {[%emt 0:00:00]} Bb7 {[%emt 0:00:04]} 3. Nc3 {[%emt 0:00:00]} g6 {[%emt 0:01:39]} 4. Nf3 {[%emt 0:00:00]} Bg7 {[%emt 0:00:09]} 5. d3 {[%emt 0:00:00]} e6 {[%emt 0:00:16]} 6. g3 {[%emt 0:00:00]} Ne7 {[%emt 0:00:33]} 7. Bg2 {[%emt 0:00:00]} d5 {[%emt 0:00:08]} 8. e5 {[%emt 0:00:00]} h5 {[%emt 0:00:16]} 9. d4 {[%emt 0:00:00]} Ba6 {[%emt 0:00:11]} 10. Be3 {[%emt 0:00:00]} Nf5 {[%emt 0:00:52]} 11. Bf2 {[%emt 0:00:00]} Qe7 {[%emt 1:20:37]} 12. Qd2 {[%emt 0:05:30]} c5 {[%emt 0:00:00]} 13. Bf1 {[%emt 0:00:30]} 1/2-1/2

[Event "Lliga Catalana Relegation 2024"]
[Site "Catalonia"]
[Date "2024.04.13"]
[Round "4.1"]
[White "Dorca Dilme, Ramon"]
[Black "Cortes Lizano, Jesus"]
[Result "1/2-1/2"]
[ECO "A36"]
[WhiteElo "2044"]
[BlackElo "2173"]
[Annotator "RC"]
[PlyCount "26"]
[EventDate "2024.01.18"]
[EventType "team-tourn"]
[EventCountry "ESP"]
[SourceTitle "playchess.com"]
[Source "ChessBase"]
[SourceQuality "1"]
[TimeControl "5400+30"]

1. e4 {[%emt 0:00:02]} c5 {[%emt 0:00:17]} 2. c4 {[%emt 0:00:25]} d6 {[%emt 1:31:13]} 3. Nc3 {[%emt 0:00:08]} Nc6 {[%emt 0:00:30]} 4. g3 {[%emt 0:00:16]} g6 {[%emt 0:00:00]} 5. Bg2 {[%emt 0:00:10]} Bg7 {[%emt 0:00:00]} 6. Nge2 {[%emt 0:00:15]} e6 {[%emt 0:00:00]} 7. O-O {[%emt 0:00:17]} Nge7 {[%emt 0:00:00]} 8. d3 {[%emt 0:00:13]} O-O {[%emt 0:00:00]} 9. Be3 {[%emt 0:00:26]} Nd4 {[%emt 0:00:00]} 10. Qd2 {[%emt 0:02:33]} Qa5 {[%emt 0:00:00]} 11. Rad1 {[%emt 0:19:29]} Nec6 {[%emt 0:00:00]} 12. Nc1 {[%emt 0:09:29]} Re8 {[%emt 0:00:00]} 13. f4 {[%emt 0:04:20]} f5 {[%emt 0:00:00]} 1/2-1/2